bitfinex/quotes_BTCUSD_20251010
["timestamp","ask_amount","ask_price","bid_price","bid_amount"]
[1760096824081,3.46463134,121730.0,121720.0,0.00051252]
[1760096824290,8.46463134,121730.0,121720.0,0.00051252]
[1760096824729,3.46463134,121730.0,121720.0,0.00051252]
[1760096824944,8.1433917,121730.0,121720.0,0.00051252]
[1760096825160,3.1433917,121730.0,121720.0,0.00051252]
[1760096825392,8.12565094,121730.0,121720.0,0.00051252]
[1760096826084,2.67695094,121730.0,121720.0,0.00051252]
[1760096826293,7.67695094,121730.0,121720.0,0.00051252]
[1760096827142,7.38897154,121730.0,121720.0,0.00051252]
[1760096827353,2.38897154,121730.0,121720.0,0.00051252]
[1760096827772,7.38897154,121730.0,121720.0,0.00051252]
[1760096827979,2.38897154,121730.0,121720.0,0.00051252]
[1760096828151,7.38897154,121730.0,121720.0,0.00051252]
[1760096828564,2.38897154,121730.0,121720.0,0.00051252]
[1760096828788,7.38897154,121730.0,121720.0,0.00051252]
[1760096828998,7.40668917,121730.0,121720.0,0.00051252]
[1760096830172,2.40668917,121730.0,121720.0,0.00051252]
[1760096830337,7.38897154,121730.0,121720.0,0.00051252]
[1760096830778,2.38897154,121730.0,121720.0,0.00051252]
[1760096830982,6.72925154,121730.0,121720.0,0.00051252]
[1760096831187,7.36232314,121730.0,121720.0,0.00051252]
[1760096831623,2.36232314,121730.0,121720.0,0.00051252]
[1760096831819,7.36232314,121730.0,121720.0,0.00051252]
[1760096832234,7.36229886,121730.0,121720.0,0.00051252]
[1760096833984,2.36229886,121730.0,121720.0,0.00051252]
[1760096834203,7.36229886,121730.0,121720.0,0.00051252]
[1760096834816,2.36229886,121730.0,121720.0,0.00051252]
[1760096834968,7.36229886,121730.0,121720.0,0.00051252]
[1760096835184,2.36229886,121730.0,121720.0,0.00051252]
[1760096835421,7.36229886,121730.0,121720.0,0.00051252]
[1760096835578,6.70257886,121730.0,121720.0,0.00051252]
[1760096835780,7.03301286,121730.0,121720.0,0.00051252]
[1760096835989,2.36229886,121730.0,121720.0,0.00051252]
[1760096836192,6.41102486,121730.0,121720.0,0.00051252]
[1760096836400,2.12796822,121730.0,121720.0,0.00051252]
[1760096836601,1.50377264,121730.0,121720.0,0.00051252]
[1760096836834,2.39689228,121730.0,121720.0,0.00051252]
[1760096837925,2.16501228,121730.0,121720.0,0.00051252]
[1760096838138,2.39689228,121730.0,121720.0,0.00051252]
[1760096838543,2.51290032,121730.0,121720.0,0.00051252]
[1760096838974,2.74478032,121730.0,121720.0,0.00051252]
[1760096840540,2.71813192,121730.0,121720.0,0.00051252]
[1760096843778,3.16683192,121730.0,121720.0,0.00051252]
[1760096850521,2.61371228,121730.0,121720.0,0.00051252]
[1760096850735,2.84559228,121730.0,121720.0,0.00051252]
[1760096855389,2.61371228,121730.0,121720.0,0.00051252]
[1760096855605,2.18587228,121730.0,121720.0,0.00051252]
[1760096855827,2.84559228,121730.0,121720.0,0.00051252]
[1760096857326,2.61371228,121730.0,121720.0,0.00051252]
[1760096857543,2.84559228,121730.0,121720.0,0.00051252]
[1760096857749,2.18587228,121730.0,121720.0,0.00051252]
[1760096858235,2.84559228,121730.0,121720.0,0.00051252]
[1760096858451,2.61371228,121730.0,121720.0,0.00051252]
[1760096858667,2.84559228,121730.0,121720.0,0.00051252]
[1760096859600,2.76003228,121730.0,121720.0,0.00051252]
[1760096859809,2.84559228,121730.0,121720.0,0.00051252]
[1760096860483,2.18587228,121730.0,121720.0,0.00051252]
[1760096860699,2.84559228,121730.0,121720.0,0.00051252]
[1760096861328,2.62910258,121730.0,121720.0,0.00051252]
[1760096861462,2.86098258,121730.0,121720.0,0.00051252]
[1760096862310,2.8686786,121730.0,121720.0,0.00051252]
[1760096862549,2.2089586,121730.0,121720.0,0.00051252]
[1760096862788,2.8686786,121730.0,121720.0,0.00051252]
[1760096868133,2.86869598,121730.0,121720.0,0.00051252]
[1760096869625,2.63681598,121730.0,121720.0,0.00051252]
[1760096869846,2.86865598,121730.0,121720.0,0.00051252]
[1760096871052,2.63682375,121730.0,121720.0,0.00051252]
[1760096871239,2.86866375,121730.0,121720.0,0.00051252]
[1760096873446,2.31558411,121730.0,121720.0,0.00051252]
[1760096873653,2.97575642,121730.0,121720.0,0.00051252]
[1760096875337,2.40163642,121730.0,121720.0,0.00051252]
[1760096875560,2.63347642,121730.0,121720.0,0.00051252]
[1760096876020,2.63347692,121730.0,121720.0,0.00051252]
[1760096876452,2.38622909,121730.0,121720.0,0.00051252]
[1760096876663,2.63347738,121730.0,121720.0,0.00051252]
[1760096876875,2.39393324,121730.0,121720.0,0.00051252]
[1760096877086,2.61036495,121730.0,121720.0,0.00051252]
[1760096877504,2.40163569,121730.0,121720.0,0.00051252]
[1760096877927,2.63347569,121730.0,121720.0,0.00051252]
[1760096878760,2.40163569,121730.0,121720.0,0.00051252]
[1760096878975,2.63347569,121730.0,121720.0,0.00051252]
[1760096880730,2.6334768,121730.0,121720.0,0.00051252]
[1760096882234,2.72747424,121730.0,121720.0,0.00051252]
[1760096882442,2.95931424,121730.0,121720.0,0.00051252]
[1760096882874,2.72747424,121730.0,121720.0,0.00051252]
[1760096883118,2.95931424,121730.0,121720.0,0.00051252]
[1760096883756,2.72747424,121730.0,121720.0,0.00051252]
[1760096883982,2.95931424,121730.0,121720.0,0.00051252]
[1760096887303,7.77689755,121730.0,121720.0,0.00051252]
[1760096887516,8.00873755,121730.0,121720.0,0.00051252]
[1760096888224,3.00873755,121730.0,121720.0,0.00051252]
[1760096888446,7.56003755,121730.0,121720.0,0.00051252]
[1760096888898,7.62685009,121730.0,121720.0,0.00051252]
[1760096889129,2.62685009,121730.0,121720.0,0.00051252]
[1760096889570,7.62685009,121730.0,121720.0,0.00051252]
[1760096891260,2.62685009,121730.0,121720.0,0.00051252]
[1760096891496,7.39501009,121730.0,121720.0,0.00051252]
[1760096891705,7.62685009,121730.0,121720.0,0.00051252]
[1760096892336,7.91482689,121730.0,121720.0,0.00051252]
[1760096892548,2.91482689,121730.0,121720.0,0.00051252]
[1760096892762,7.91482689,121730.0,121720.0,0.00051252]
[1760096893207,2.91482689,121730.0,121720.0,0.00051252]
[1760096893425,7.91482689,121730.0,121720.0,0.00051252]
[1760096893873,0.50435204,121690.0,121680.0,0.06410267]
[1760096894103,1.06821204,121690.0,121680.0,0.06415288]
[1760096894403,1.06821204,121690.0,121680.0,0.22851842]
[1760096894665,0.86107849,121690.0,121680.0,0.22851842]
[1760096894869,0.86107849,121690.0,121680.0,5.021e-05]
[1760096895033,1.09295849,121690.0,121680.0,5.021e-05]
[1760096897065,1.15437235,121690.0,121680.0,5.021e-05]
[1760096897313,1.16262732,121690.0,121680.0,5.021e-05]
[1760096898541,0.84518732,121690.0,121680.0,0.16441575]
[1760096898759,1.16262732,121690.0,121680.0,0.21639575]
[1760096899165,0.75814031,121690.0,121680.0,0.21639575]
[1760096899410,0.99002031,121690.0,121680.0,0.21639575]
[1760096899623,0.90446031,121690.0,121680.0,0.64472806]
[1760096899760,0.99002031,121690.0,121680.0,0.64677892]
[1760096899953,0.99002031,121690.0,121680.0,0.21844661]
[1760096900221,1.15437235,121690.0,121680.0,0.21844661]
[1760096901495,0.67258031,121690.0,121680.0,0.21844661]
[1760096901706,0.75814031,121690.0,121680.0,0.21844661]
[1760096902131,0.99002031,121690.0,121680.0,0.21844661]
[1760096902339,0.92249235,121690.0,121680.0,0.21844661]
[1760096902534,1.15437235,121690.0,121680.0,0.21844661]
[1760096903532,0.99002031,121690.0,121680.0,0.21844661]
[1760096903746,1.15437235,121690.0,121680.0,0.21844661]
[1760096907726,0.67258031,121690.0,121680.0,0.21844661]
[1760096907933,0.99002031,121690.0,121680.0,0.21844661]
[1760096908746,1.15437235,121690.0,121680.0,0.21844661]
[1760096910689,1.15190707,121690.0,121680.0,0.21844661]
[1760096912418,0.98755503,121690.0,121680.0,0.21844661]
[1760096912636,0.75567503,121690.0,121680.0,0.21844661]
[1760096912896,0.65002031,121690.0,121680.0,0.71239979]
[1760096913138,0.24646,121690.0,121680.0,0.71239979]
[1760096913394,0.47834,121690.0,121680.0,0.71239979]
[1760096914031,0.24646,121690.0,121680.0,0.64677892]
[1760096914451,0.47834,121690.0,121680.0,0.64677892]
[1760096915054,0.24646,121690.0,121680.0,0.64677892]
[1760096915266,0.47834,121690.0,121680.0,0.64677892]
[1760096918300,0.24646,121690.0,121680.0,0.64677892]
[1760096918512,0.47834,121690.0,121680.0,0.64677892]
[1760096920517,0.24646,121690.0,121680.0,0.64677892]
[1760096920736,0.47834,121690.0,121680.0,0.64677892]
[1760096922045,0.4783,121690.0,121680.0,0.64677892]
[1760096925514,0.24646,121690.0,121680.0,0.64677892]
[1760096926161,0.4783,121690.0,121680.0,0.64677892]
[1760096929990,0.24646,121690.0,121680.0,0.64677892]
[1760096930184,0.4783,121690.0,121680.0,0.64677892]
[1760096934615,0.24646,121690.0,121680.0,0.64677892]
[1760096934855,0.24646,121690.0,121680.0,1.17642028]
[1760096935098,0.4783,121690.0,121680.0,0.77279001]
[1760096935526,0.4783,121690.0,121680.0,0.98686248]
[1760096935952,0.4783,121690.0,121680.0,0.96867549]
[1760096938162,0.24646,121690.0,121680.0,0.96867549]
[1760096938382,0.4783,121690.0,121680.0,0.96867549]
[1760096940656,0.24646,121690.0,121680.0,0.96867549]
[1760096940862,0.4783,121690.0,121680.0,0.96867549]
[1760096941089,0.4783,121690.0,121680.0,0.6474731]
[1760096942149,0.24646,121690.0,121680.0,0.24314865]
[1760096942437,0.4783,121690.0,121680.0,0.539649]
[1760096942651,0.96385443,121690.0,121680.0,0.19474661]
[1760096942851,1.07201443,121690.0,121680.0,0.16646661]
[1760096943058,1.30385443,121690.0,121680.0,0.00210107]
[1760096943269,1.75513649,121690.0,121680.0,0.00210107]
[1760096943490,2.28697649,121690.0,121680.0,0.00210107]
[1760096943895,2.31168492,121690.0,121680.0,0.00210107]
[1760096951610,2.40104731,121690.0,121680.0,0.00210107]
[1760096951820,2.31168492,121690.0,121680.0,0.00210107]
[1760096952834,2.07984492,121690.0,121680.0,0.00210107]
[1760096953041,2.31168492,121690.0,121680.0,0.00210107]
[1760096954305,2.10490508,121690.0,121680.0,0.00210107]
[1760096954877,2.19426747,121690.0,121680.0,0.00210107]
[1760096955078,2.42614747,121690.0,121680.0,0.00210107]
[1760096955280,2.10494508,121690.0,121680.0,0.00210107]
[1760096955706,2.19426747,121690.0,121680.0,0.00210107]
[1760096955909,2.10494508,121690.0,121680.0,0.00210107]
[1760096956125,1.55186269,121690.0,121680.0,0.00210107]
[1760096956335,2.19050508,121690.0,121680.0,0.00210107]
[1760096956747,1.87306508,121690.0,121680.0,0.00210107]
[1760096956951,2.19050508,121690.0,121680.0,0.00210107]
[1760096957155,1.95862508,121690.0,121680.0,0.00210107]
[1760096957336,2.19050508,121690.0,121680.0,0.00210107]
[1760096959608,1.95862508,121690.0,121680.0,0.00210107]
[1760096959822,2.19050508,121690.0,121680.0,0.00210107]
[1760096960244,2.51170747,121690.0,121680.0,0.00210107]
[1760096960452,2.19050508,121690.0,121680.0,0.00210107]
[1760096961895,1.87306508,121690.0,121680.0,0.00210107]
[1760096962098,2.10494508,121690.0,121680.0,0.00210107]
[1760096962312,2.19050508,121690.0,121680.0,0.00210107]
[1760096963259,1.95862508,121690.0,121680.0,0.00210107]
[1760096963429,2.19050508,121690.0,121680.0,0.00210107]
[1760096964214,2.51170747,121690.0,121680.0,0.00210107]
[1760096964426,2.27982747,121690.0,121680.0,0.00210107]
[1760096964629,3.18976347,121690.0,121680.0,0.00210107]
[1760096968464,3.20511632,121690.0,121680.0,0.00210107]
[1760096969488,2.97323632,121690.0,121680.0,0.00210107]
[1760096969794,3.20511632,121690.0,121680.0,0.00210107]
[1760096971591,3.21280053,121690.0,121680.0,0.00210107]
[1760096979849,2.98092053,121690.0,121680.0,0.00210107]
[1760096980059,3.21280053,121690.0,121680.0,0.00210107]
[1760096980477,2.98092053,121690.0,121680.0,0.00210107]
[1760096980685,3.21280053,121690.0,121680.0,0.00210107]
[1760096980899,2.98092053,121690.0,121680.0,0.00210107]
[1760096981321,3.21280053,121690.0,121680.0,0.00210107]
[1760096982603,2.89536053,121690.0,121680.0,0.00210107]
[1760096982863,3.55516053,121690.0,121680.0,0.00210107]
[1760096983098,3.12724053,121690.0,121680.0,0.00210107]
[1760096983307,3.55516053,121690.0,121680.0,0.00210107]
[1760096984813,2.89536053,121690.0,121680.0,0.00210107]
[1760096985025,3.21280053,121690.0,121680.0,0.00210107]
[1760096986193,2.89536053,121690.0,121680.0,0.00210107]
[1760096986404,2.98092053,121690.0,121680.0,0.00210107]
[1760096986617,3.21280053,121690.0,121680.0,0.00210107]
[1760096987666,3.12724053,121690.0,121680.0,0.00210107]
[1760096987873,3.21280053,121690.0,121680.0,0.00210107]
[1760096990187,2.98092053,121690.0,121680.0,0.00210107]
[1760096990403,3.21280053,121690.0,121680.0,0.00210107]
[1760096991480,2.17281214,121690.0,121680.0,0.00210107]
[1760096991694,2.11052793,121690.0,121680.0,0.00210107]
[1760096991920,1.98167527,121690.0,121680.0,0.16646661]
[1760096992135,1.87306508,121690.0,121680.0,0.16646661]
[1760096992357,2.19050508,121690.0,121680.0,0.01738107]
[1760096992807,0.78751065,121690.0,121680.0,0.18174661]
[1760096993033,0.46524016,121690.0,121680.0,0.537659]
[1760096993316,0.69712016,121690.0,121680.0,0.537659]
[1760096994213,0.03968016,121690.0,121680.0,0.537659]
[1760096994637,0.35712016,121690.0,121680.0,0.537659]
[1760096995060,0.12524016,121690.0,121680.0,0.60907173]
[1760096995278,0.35712016,121690.0,121680.0,0.60907173]
[1760096995492,0.35712016,121690.0,121680.0,0.28786934]
[1760096995699,0.35712016,121690.0,121680.0,0.21645661]
[1760096996761,0.03968016,121690.0,121680.0,0.21645661]
[1760096996988,0.35712016,121690.0,121680.0,0.64486282]
[1760096997715,0.17368947,121690.0,121680.0,0.64486282]
[1760096997929,0.17368947,121690.0,121680.0,0.21645661]
[1760096998145,0.17368947,121690.0,121680.0,0.29645341]
[1760096998977,0.51233863,121700.0,121690.0,0.16435204]
[1760096999112,0.43112206,121700.0,121690.0,0.21434204]
[1760096999315,0.74856206,121700.0,121690.0,0.21434204]
[1760096999521,0.42556,121700.0,121690.0,0.25254643]
[1760096999734,0.65744,121700.0,121690.0,0.25254643]
[1760096999945,0.31744,121700.0,121690.0,0.25254643]
[1760097000150,0.42556,121700.0,121690.0,0.25254643]
[1760097000360,0.65744,121700.0,121690.0,0.25254643]
[1760097000570,0.42556,121700.0,121690.0,0.25254643]
[1760097000771,0.65744,121700.0,121690.0,0.25254643]
[1760097001002,0.42556,121700.0,121690.0,0.21588006]
[1760097001212,0.65744,121700.0,121690.0,0.21588006]
[1760097001415,0.42556,121700.0,121690.0,0.21588006]
[1760097001622,0.65744,121700.0,121690.0,0.21588006]
[1760097002711,0.82177853,121700.0,121690.0,0.21588006]
[1760097002921,0.42556,121700.0,121690.0,0.21588006]
[1760097003126,0.6574,121700.0,121690.0,0.21588006]
[1760097003951,0.42556,121700.0,121690.0,0.29587686]
[1760097004306,0.6574,121700.0,121690.0,0.29587686]
[1760097004568,0.42556,121700.0,121690.0,0.29587686]
[1760097004725,0.6574,121700.0,121690.0,0.29587686]
[1760097004924,0.6574,121700.0,121690.0,0.21588006]
[1760097008522,0.58989853,121700.0,121690.0,0.02890802]
[1760097008668,0.82173853,121700.0,121690.0,0.19326006]
[1760097012146,0.6574,121700.0,121690.0,0.19326006]
[1760097012580,0.82173853,121700.0,121690.0,0.19326006]
[1760097017064,0.42556,121700.0,121690.0,0.19326006]
[1760097017296,0.6574,121700.0,121690.0,0.19326006]
[1760097017505,0.90392,121700.0,121690.0,0.19326006]
[1760097018610,1.06825853,121700.0,121690.0,0.19326006]
[1760097019952,0.90392,121700.0,121690.0,0.19326006]
[1760097020592,0.58652,121700.0,121690.0,0.19326006]
[1760097020826,0.90392,121700.0,121690.0,0.21651006]
[1760097021038,0.58652,121700.0,121690.0,0.21651006]
[1760097021288,0.90392,121700.0,121690.0,0.21651006]
[1760097021751,0.67208,121700.0,121690.0,0.21651006]
[1760097022182,0.90392,121700.0,121690.0,0.21651006]
[1760097023078,0.67208,121700.0,121690.0,0.21651006]
[1760097023343,0.90392,121700.0,121690.0,0.21651006]
[1760097026213,0.67208,121700.0,121690.0,0.21651006]
[1760097026473,0.81836,121700.0,121690.0,0.23525951]
[1760097026721,0.90392,121700.0,121690.0,0.23525951]
[1760097026955,0.24652,121700.0,121690.0,0.66366572]
[1760097027193,0.47836,121700.0,121690.0,0.66366572]
[1760097027424,0.24652,121700.0,121690.0,0.66366572]
[1760097027718,0.47836,121700.0,121690.0,0.66366572]
[1760097029516,0.47836,121700.0,121690.0,0.23525951]
[1760097030191,0.47836,121700.0,121690.0,0.21651006]
[1760097037086,0.24652,121700.0,121690.0,0.21651006]
[1760097037297,0.47836,121700.0,121690.0,0.21651006]
[1760097037933,0.24652,121700.0,121690.0,0.21651006]
[1760097038136,0.47836,121700.0,121690.0,0.21651006]
[1760097038348,0.24652,121700.0,121690.0,0.72491307]
[1760097038608,0.47836,121700.0,121690.0,0.72491307]
[1760097039010,0.24652,121700.0,121690.0,0.72491307]
[1760097039281,0.47832,121700.0,121690.0,0.72491307]
[1760097039489,0.47832,121700.0,121690.0,0.29650686]
[1760097039936,0.47832,121700.0,121690.0,0.72491307]
[1760097040374,0.47832,121700.0,121690.0,0.64491627]
[1760097047642,0.24652,121700.0,121690.0,0.64491627]
[1760097047869,0.47832,121700.0,121690.0,0.64491627]
[1760097048087,0.29544748,121700.0,121690.0,0.64491627]
[1760097057500,0.29544748,121700.0,121690.0,0.53774657]
[1760097058806,0.06364748,121700.0,121690.0,0.53774657]
[1760097059048,0.29544748,121700.0,121690.0,0.53774657]
[1760097059887,0.29544748,121700.0,121690.0,0.21651006]
[1760097060317,0.29544748,121700.0,121690.0,0.53774657]
[1760097060956,0.06364748,121700.0,121690.0,0.53774657]
[1760097061387,0.29544748,121700.0,121690.0,0.53774657]
[1760097064113,0.29544748,121700.0,121690.0,0.61774337]
[1760097064543,0.06364748,121700.0,121690.0,0.61774337]
[1760097064745,0.29544748,121700.0,121690.0,0.61774337]
[1760097069286,0.06364748,121700.0,121690.0,0.61774337]
[1760097069502,0.29544748,121700.0,121690.0,0.61774337]
[1760097071056,0.06364748,121700.0,121690.0,0.61774337]
[1760097071272,0.29544748,121700.0,121690.0,0.61774337]
[1760097072539,0.06364748,121700.0,121690.0,0.61774337]
[1760097072812,0.29544748,121700.0,121690.0,0.61774337]
[1760097073063,0.06364748,121700.0,121690.0,0.61774337]
[1760097073488,0.29544748,121700.0,121690.0,0.61774337]
[1760097073943,0.06364748,121700.0,121690.0,0.61774337]
[1760097074135,0.29544748,121700.0,121690.0,0.61774337]
[1760097075932,0.29544748,121700.0,121690.0,0.53774657]
[1760097076364,0.06364748,121700.0,121690.0,0.53774657]
[1760097076565,0.06364748,121700.0,121690.0,1.26334165]
[1760097076771,0.08693045,121740.0,121730.0,0.16429803]
[1760097076980,0.31873045,121740.0,121730.0,0.53576454]
[1760097077176,0.31873045,121740.0,121730.0,0.61576134]
[1760097077376,0.65873045,121740.0,121730.0,0.61576134]
[1760097077635,0.23317045,121740.0,121730.0,0.53576454]
[1760097077879,0.00142073,121740.0,121730.0,0.53576454]
[1760097078043,0.23322073,121740.0,121730.0,0.53576454]
[1760097079379,0.29527774,121740.0,121730.0,0.53576454]
[1760097080167,0.00142073,121740.0,121730.0,0.54408622]
[1760097080377,0.23318073,121740.0,121730.0,0.56459806]
[1760097080817,0.23318073,121740.0,121730.0,0.55627638]
[1760097082745,0.00142073,121740.0,121730.0,0.55627638]
[1760097082969,0.23318073,121740.0,121730.0,0.55627638]
[1760097083173,0.00142073,121740.0,121730.0,0.87751289]
[1760097083378,0.00558073,121740.0,121730.0,0.88576122]
[1760097083589,0.00142073,121740.0,121730.0,0.88576122]
[1760097083793,0.00142073,121740.0,121730.0,0.79628471]
[1760097084036,0.00142073,121740.0,121730.0,0.96888328]
[1760097084453,0.00142073,121740.0,121730.0,0.87940677]
[1760097085272,0.00142073,121740.0,121730.0,0.87115844]
[1760097085479,0.00142073,121740.0,121730.0,0.63939844]
[1760097085694,0.00142073,121740.0,121730.0,0.87115844]
[1760097085903,0.00142073,121740.0,121730.0,0.63939844]
[1760097086114,0.00142073,121740.0,121730.0,0.8506466]
[1760097087896,0.00142073,121740.0,121730.0,0.29765009]
[1760097088122,0.00142073,121740.0,121730.0,0.21452803]
[1760097088350,0.00142073,121740.0,121730.0,0.76748454]
[1760097088564,0.00142073,121740.0,121730.0,0.53576454]
[1760097094288,0.00142073,121740.0,121730.0,0.60725581]
[1760097094952,0.00142073,121740.0,121730.0,0.53576454]
[1760097105697,0.00142073,121740.0,121730.0,0.76744454]
[1760097114027,0.00142073,121740.0,121730.0,1.08868105]
[1760097116160,0.00142073,121740.0,121730.0,0.85700105]
[1760097116363,0.00142073,121740.0,121730.0,1.08868105]
[1760097117201,0.00142073,121740.0,121730.0,1.09862155]
[1760097117552,0.00142073,121740.0,121730.0,0.88410284]
[1760097118859,0.00142073,121740.0,121730.0,0.65242284]
[1760097119287,0.00142073,121740.0,121730.0,0.87416234]
[1760097119529,0.00142073,121740.0,121730.0,0.64248234]
[1760097119732,0.00142073,121740.0,121730.0,0.87416234]
[1760097120174,0.00142073,121740.0,121730.0,0.9572844]
[1760097120395,0.00142073,121740.0,121730.0,1.0656044]
[1760097120612,0.00142073,121740.0,121730.0,1.3772812]
[1760097121728,0.00142073,121740.0,121730.0,1.4074331]
[1760097122169,0.00142073,121740.0,121730.0,1.1757531]
[1760097122393,0.00142073,121740.0,121730.0,1.4084331]
[1760097122607,0.00770283,121770.0,121760.0,0.16425755]
[1760097122831,0.83573816,121790.0,121780.0,0.16423057]
[1760097123084,1.15298846,121790.0,121780.0,0.18085057]
[1760097123986,1.15298846,121790.0,121770.0,0.20023201]
[1760097124420,1.15298846,121790.0,121780.0,0.01525]
[1760097124637,1.1375824,121790.0,121780.0,0.01525]
[1760097124857,1.1375824,121790.0,121780.0,0.17948057]
[1760097125087,0.9059024,121790.0,121780.0,0.17948057]
[1760097125334,0.9059024,121790.0,121780.0,0.68067614]
[1760097125335,0.00795328,121790.0,121780.0,0.68067614]
[1760097125553,0.2329303,121790.0,121780.0,0.25272183]
[1760097125772,0.24063328,121790.0,121780.0,0.25272183]
[1760097126229,0.00995328,121790.0,121780.0,0.68067614]
[1760097126456,0.2340103,121790.0,121780.0,0.68067614]
[1760097126729,0.2330103,121790.0,121780.0,0.68067614]
[1760097127170,0.2330103,121790.0,121780.0,0.68877194]
[1760097127171,0.0002503,121790.0,121780.0,0.68877194]
[1760097128291,0.0002503,121790.0,121780.0,0.65080068]
[1760097131214,0.0002503,121790.0,121780.0,0.73392274]
[1760097133682,0.00281128,121790.0,121780.0,0.73392274]
[1760097134160,0.00281128,121790.0,121780.0,0.30596843]
[1760097134396,0.00281128,121790.0,121780.0,0.73392274]
[1760097134629,0.00281128,121790.0,121780.0,0.30596843]
[1760097134925,0.00281128,121790.0,121780.0,0.73392274]
[1760097135132,0.00281128,121790.0,121780.0,0.72582694]
[1760097135589,0.00281128,121790.0,121780.0,0.80582374]
[1760097139890,0.00281128,121790.0,121780.0,1.03754374]
[1760097143806,0.00281128,121790.0,121780.0,0.60958943]
[1760097144033,0.00281128,121790.0,121780.0,1.03754374]
[1760097144939,0.00281128,121790.0,121780.0,0.80582374]
[1760097145585,0.00281128,121790.0,121780.0,1.03750374]
[1760097146940,0.00281128,121790.0,121780.0,0.60954943]
[1760097147164,0.00281128,121790.0,121780.0,1.03750374]
[1760097148030,0.00281128,121790.0,121780.0,0.60954943]
[1760097148248,0.00281128,121790.0,121780.0,1.03750374]
[1760097148464,0.00281128,121790.0,121780.0,1.03754374]
[1760097152201,0.00281128,121790.0,121780.0,1.03854374]
[1760097152855,0.00281128,121790.0,121780.0,1.03954374]
[1760097153074,0.00281128,121790.0,121780.0,1.03950374]
[1760097153301,0.00281128,121790.0,121780.0,0.37986943]
[1760097153526,0.00281128,121790.0,121780.0,1.03950374]
[1760097156531,0.00281128,121790.0,121780.0,0.80782374]
[1760097156741,0.00281128,121790.0,121780.0,1.03950374]
[1760097156950,0.00281128,121790.0,121780.0,0.95950694]
[1760097157915,0.00281128,121790.0,121780.0,0.72782694]
[1760097158135,0.00281128,121790.0,121780.0,0.95950694]
[1760097159437,0.00281128,121790.0,121780.0,0.72782694]
[1760097159660,0.00281128,121790.0,121780.0,0.95950694]
[1760097159873,0.00281128,121790.0,121780.0,1.03950374]
[1760097161105,0.00281128,121790.0,121780.0,1.03946374]
[1760097165447,0.00281128,121790.0,121780.0,0.80782374]
[1760097165661,0.00281128,121790.0,121780.0,1.03946374]
[1760097168313,0.00281128,121790.0,121780.0,0.80782374]
[1760097168537,0.00281128,121790.0,121780.0,1.03946374]
[1760097168962,0.00281128,121790.0,121780.0,1.06961564]
[1760097171397,0.09842191,121820.0,121810.0,0.16419013]
[1760097171582,0.09892484,121820.0,121810.0,0.17601013]
[1760097171828,0.09892484,121820.0,121810.0,0.21541013]
[1760097174516,0.09892484,121820.0,121810.0,0.77463518]
[1760097174517,0.00050293,121820.0,121810.0,0.77463518]
[1760097176235,0.00050293,121820.0,121810.0,1.00639518]
[1760097176913,0.00050293,121820.0,121810.0,0.96643335]
[1760097177124,0.00203882,121820.0,121810.0,0.96643335]
[1760097177553,0.00203882,121820.0,121810.0,0.85903761]
[1760097179087,0.00203882,121820.0,121810.0,0.85883769]
[1760097183776,0.00203882,121820.0,121810.0,0.85872937]
[1760097183999,0.00203882,121820.0,121810.0,0.93872617]
[1760097186220,0.00203882,121820.0,121810.0,0.93868617]
[1760097188913,0.00203882,121820.0,121810.0,0.70696617]
[1760097189123,0.00203882,121820.0,121810.0,0.93868617]
[1760097189542,0.00203882,121820.0,121810.0,0.70696617]
[1760097189965,0.00203882,121820.0,121810.0,0.85868937]
[1760097190174,0.00203882,121820.0,121810.0,0.85864937]
[1760097190386,0.00203882,121820.0,121810.0,0.3064108]
[1760097190585,0.00203882,121820.0,121810.0,0.85864937]
[1760097191320,0.00188499,121820.0,121810.0,0.62696937]
[1760097191512,0.00188499,121820.0,121810.0,0.85864937]
[1760097191730,0.00188499,121820.0,121810.0,0.62696937]
[1760097191942,0.00188499,121820.0,121810.0,0.44678189]
[1760097192194,0.00188499,121820.0,121810.0,0.53566046]
[1760097193657,0.00188499,121820.0,121810.0,0.21510189]
[1760097193867,0.16419013,121810.0,121800.0,0.16420244]
[1760097194071,0.7165887,121810.0,121800.0,0.16420361]
[1760097195351,0.4847487,121810.0,121800.0,0.16420361]
[1760097195560,0.7165887,121810.0,121800.0,0.16420361]
[1760097196417,0.23184,121810.0,121800.0,0.16420361]
[1760097196627,0.55239857,121810.0,121800.0,0.18067361]
[1760097197161,0.23184,121810.0,121800.0,0.18067361]
[1760097197571,0.55239857,121810.0,121800.0,0.18067361]
[1760097197781,1.08508432,121820.0,121810.0,0.16419013]
[1760097197978,1.48552638,121820.0,121810.0,0.16419013]
[1760097198866,1.48552638,121820.0,121800.0,0.17628361]
[1760097199070,0.32055857,121810.0,121800.0,0.19275361]
[1760097199276,0.55239857,121810.0,121800.0,0.19275361]
[1760097199482,0.5534226,121810.0,121800.0,0.19275361]
[1760097199877,0.3215826,121810.0,121800.0,0.19275361]
[1760097200082,0.00102403,121810.0,121800.0,0.26128663]
[1760097200284,0.23286403,121810.0,121800.0,0.26128663]
[1760097200490,0.23286403,121810.0,121800.0,0.53611218]
[1760097200898,0.23286403,121810.0,121800.0,0.21555361]
[1760097201923,0.00102403,121810.0,121800.0,0.21555361]
[1760097202131,0.23286403,121810.0,121800.0,0.21555361]
[1760097202551,0.00102403,121810.0,121800.0,0.21555361]
[1760097202766,0.23282403,121810.0,121800.0,0.21555361]
[1760097202989,0.00102403,121810.0,121800.0,0.21555361]
[1760097203198,0.23282403,121810.0,121800.0,0.21555361]
[1760097203410,0.00102403,121810.0,121800.0,0.21555361]
[1760097203639,0.23282403,121810.0,121800.0,0.21555361]
[1760097204758,0.00102403,121810.0,121800.0,0.60814425]
[1760097205186,0.23286403,121810.0,121800.0,0.60814425]
[1760097205585,0.00102403,121810.0,121800.0,0.60814425]
[1760097205790,0.23286403,121810.0,121800.0,0.60814425]
[1760097206001,0.23286403,121810.0,121800.0,0.53611218]
[1760097210463,0.23286403,121810.0,121800.0,0.21555361]
[1760097210670,0.23282403,121810.0,121800.0,0.21555361]
[1760097210883,0.23282403,121810.0,121800.0,0.53611218]
[1760097212166,0.23282403,121810.0,121800.0,0.21555361]
[1760097212375,0.23282403,121810.0,121800.0,0.53611218]
[1760097214376,0.00102403,121810.0,121800.0,0.56791195]
[1760097214579,0.23282403,121810.0,121800.0,0.56791195]
[1760097214836,0.00102403,121810.0,121800.0,0.56791195]
[1760097215036,0.23282403,121810.0,121800.0,0.56791195]
[1760097215587,0.00102403,121810.0,121800.0,0.56791195]
[1760097215783,0.00102403,121810.0,121800.0,0.88847052]
[1760097216030,0.23282403,121810.0,121800.0,0.88847052]
[1760097216810,0.00102403,121810.0,121800.0,0.88847052]
[1760097217557,0.00102403,121810.0,121800.0,0.97159258]
[1760097220213,0.00102403,121810.0,121800.0,1.17159281]
[1760097220411,0.00102403,121810.0,121800.0,0.27587567]
[1760097220657,0.00102403,121810.0,121800.0,0.62077424]
[1760097222401,0.00102403,121810.0,121800.0,0.94133281]
[1760097222646,0.00102403,121810.0,121800.0,0.62077424]
[1760097224622,0.00102403,121810.0,121800.0,0.53765218]